[Event "Slovakian ECo-C Extraliga 2024-25"]
[Site "Slovakia"]
[Date "2025.01.19"]
[Round "4"]
[White "Balogh, Peter"]
[Black "Stevik, Patrik"]
[Result "0-1"]
[Annotator "TA"]
[ECO "C54"]
[WhiteElo "2086"]
[BlackElo "2314"]
[PlyCount "62"]
[EventDate "2024.09.12"]
[EventType "team-tourn"]
[EventCountry "SVK"]
[SourceTitle "playchess.com"]
[Source "ChessBase"]
[SourceQuality "1"]
[TimeControl "5400+30"]

{[%evp 24,62,-68,-72,-78,-75,-73,-91,-85,-113,-114,-114,-110,-119,-115,-131,-133,-220,-106,-109,-78,-90,-92,-101,-90,-93,-92,-88,-93,-95,-42,-117,-112,-146,-134,-144,-141,-264,-256,-735,-734]} 1. e4 {[%emt 0:00:33]} e5 {[%emt 0:00:30]} 2. Nf3 {[%emt 0:00:12]} Nc6 {[%emt 0:00:00]} 3. Bc4 {[%emt 0:03:07]} Bc5 {[%emt 0:00:00]} 4. c3 {[%emt 0:01:02]} Nf6 {[%emt 0:00:00]} 5. d4 {[%emt 0:00:08]} exd4 {[%emt 0:00:04]} 6. cxd4 {[%emt 0:00:05]} Bb4+ {[%emt 0:00:01]} 7. Nc3 {[%emt 0:00:14]} Nxe4 {[%emt 0:00:05]} 8. O-O {[%emt 0:00:07]} Bxc3 {[%emt 0:01:21]} 9. d5 {[%emt 0:00:31]} Ne5 {[%emt 0:00:25]} 10. bxc3 {[%emt 0:11:27]} Nxc4 {[%emt 0:00:06]} 11. Re1 {[%emt 0:07:28]} Ncd6 {[%emt 0:06:45]} 12. Ng5 {[%emt 0:04:40]} O-O {[%emt 0:01:02]} 13. Nxe4 {[%emt 0:00:56]} Nxe4 {[%emt 0:00:16] C54: Giuoco Piano: 4 c3 Nf6, main lines with 5 d4 and 5 d3.} 14. Rxe4 {[%emt 0:00:08]} d6 {[%emt 0:00:37]} 15. Qd4 $146 {[%emt 0:09:22]} (15. Qf3 Bd7 16. Bd2 Re8 17. Rae1 Rxe4 18. Rxe4 f5 19. Re1 Qf6 20. c4 Re8 21. Rxe8+ Bxe8 {0-1 Kulon,K (2379)-Koellner,R (2454) St Veit op 43rd 2024 (4)}) 15... Bf5 {[%emt 0:07:10] Black is better.} 16. Rf4 {[%emt 0:06:27]} Bg6 {[%emt 0:01:17]} 17. c4 {[%emt 0:03:16]} Qe7 {[%emt 0:04:28][%cal Re7e1] [#]} 18. Bb2 {[%emt 0:02:02][%csl Gb2][%cal Rd4g7]} f6 {[%emt 0:00:17]} 19. h4 {[%emt 0:04:20]} Rfe8 {[%emt 0:03:22]} 20. g4 {[%emt 0:03:54] [#]} (20. Bc3 $17 {might work better.}) 20... Qe5 {[%emt 0:02:39]} (20... Qe2 $1 $19 {Strongly threatening ...Re4.} 21. g5 Re4 22. Rxe4 Bxe4) 21. h5 $17 {[%emt 0:10:09]} Qxd4 {[%emt 0:03:39]} 22. Bxd4 {[%emt 0:00:27]} Bd3 {[%emt 0:00:54]} 23. h6 {[%emt 0:02:16]} g5 {[%emt 0:02:29]} (23... Bxc4 {with more complications.} 24. hxg7 Bxd5 25. Bxf6 b5) 24. Rxf6 {[%emt 0:07:59]} Re4 $1 {[%emt 0:00:19]} (24... Bxc4 25. Rf5 Re4 26. Rxg5+ Kf8 27. Bg7+ Ke8 28. f3 $18) 25. Be3 {[%emt 0:06:40]} Rxg4+ {[%emt 0:01:22]} ({Much weaker is} 25... Rxc4 $6 26. f3 $11) 26. Kh2 {[%emt 0:00:11]} Re8 {[%emt 0:14:06]} (26... Bxc4 $17 27. Rc1 Re8 (27... Bxa2 28. Rxc7 Bxd5 29. Rxd6 $16)) 27. Rd1 {[%emt 0:12:07]} (27. c5 $1 $15) 27... Bxc4 {[%emt 0:06:54]} 28. Rf5 {[%emt 0:00:31]} Rh4+ {[%emt 0:02:39]} 29. Kg3 {[%emt 0:00:26]} Rxh6 {[%emt 0:00:29]} (29... Bxa2 $2 {is the wrong capture.} 30. Rxg5+ Kf7 31. Kxh4 $18) 30. Bxg5 {[%emt 0:00:46]} (30. Rxg5+ $17 Rg6 31. Rxg6+ hxg6 32. Rc1) 30... Rg6 $19 {[%emt 0:00:18]} 31. Kf4 $2 {[%emt 0:00:56]} (31. Kh4) 31... h6 {[%emt 0:00:14] Weighted Error Value: White=0.53/Black=0.16 (very precise)   Mistake:       	White=4     	Black=2      Inaccurate:     	White=2     	---        OK:         	White=4     	Black=6      Best:        	White=1     	Black=2      Strong:       	---       	Black=1} 0-1

[Event "Slovakian ECo-C Extraliga 2024-25"]
[Site "Slovakia"]
[Date "2025.01.19"]
[Round "4"]
[White "Galla, Richard"]
[Black "Jablonicky, Martin"]
[Result "0-1"]
[Annotator "TA"]
[ECO "A58"]
[WhiteElo "1977"]
[BlackElo "2418"]
[PlyCount "54"]
[EventDate "2024.09.12"]
[EventType "team-tourn"]
[EventCountry "SVK"]
[SourceTitle "playchess.com"]
[Source "ChessBase"]
[SourceQuality "1"]
[TimeControl "5400+30"]

{[%evp 22,54,39,33,33,0,0,-29,6,0,0,-67,-49,-83,-56,-57,-41,-121,-122,-111,-120,-164,-166,-145,-123,-155,-135,-296,-282,-334,-318,-344,-269,-526,-527]} 1. d4 {[%emt 0:00:09]} Nf6 {[%emt 0:00:48]} 2. c4 {[%emt 0:00:17][%cal Bc2c4,Bc4b5][%mdl 32]} g6 {[%emt 0:01:01]} 3. g3 {[%emt 0:00:05]} c5 {[%emt 0:01:14]} 4. d5 {[%emt 0:00:02]} b5 {[%emt 0:00:17]} 5. cxb5 {[%emt 0:00:07]} a6 {[%emt 0:00:07]} 6. bxa6 {[%emt 0:00:05]} Bg7 {[%emt 0:01:07]} 7. Bg2 {[%emt 0:00:03]} O-O {[%emt 0:01:18]} 8. Nc3 {[%emt 0:00:12]} d6 {[%emt 0:00:06]} 9. Nf3 {[%emt 0:00:06]} Bxa6 {[%emt 0:00:10]} 10. O-O {[%emt 0:02:33]} Nbd7 {[%emt 0:00:04]} 11. Re1 {[%emt 0:13:12]} Qa5 {[%emt 0:03:42]} 12. Qc2 {[%emt 0:07:33]} Rfb8 {[%emt 0:00:21] A58: Benko/Volga Gambit: Lines with 5 bxa6.} 13. h3 {[%emt 0:09:49]} (13. Bh3 $14) 13... Nb6 $11 {[%emt 0:10:42]} 14. Nd2 {[%emt 0:03:09] [#] Strongly threatening Nb3.} Bc8 {[%emt 0:00:43][%mdl 1024] Black has an edge. Black has compensation.} 15. e4 $146 {[%emt 0:02:18]} (15. Rb1 Nfd7 16. Nb3 Qa6 17. Bd2 Nc4 18. Bg5 Nde5 19. Nd2 h6 20. Nxc4 Nxc4 21. Bc1 {0-1 Barbat,T (1640)-Guidarelli,L (2135) FRA-chT U18 France 1996}) 15... Nfd7 {[%emt 0:00:19][%cal Bf6d7,Bd7c5,Bc5a4,Ba4b2,Bb2d1][%mdl 32]} 16. f4 {[%emt 0:00:42]} (16. Nb3 $11 Qa7 17. Bg5) 16... c4 $1 $15 {[%emt 0:04:30]} 17. Bf1 {[%emt 0:12:44]} Ba6 {[%emt 0:05:54]} 18. Nf3 {[%emt 0:07:17]} Nc5 {[%emt 0:00:05]} 19. Be3 {[%emt 0:12:00] [#]} ({Better is} 19. Rb1 $15) 19... Nba4 $1 $17 {[%emt 0:07:24]} 20. Nxa4 {[%emt 0:02:49]} Nxa4 {[%emt 0:02:24]} 21. b4 {[%emt 0:05:40]} Rxb4 {[%emt 0:01:42]} 22. Rab1 {[%emt 0:00:51]} Rb2 {[%emt 0:02:53]} 23. Rxb2 {[%emt 0:00:44]} Nxb2 {[%emt 0:00:02]} 24. Rb1 $2 {[%emt 0:04:44] White does not recover from this.} (24. e5 $17 Nd3 (24... Qxa2 25. Bd4 $11) (24... Qxd5 25. Qxb2 Qxf3 26. Bg2 $14) 25. Bxd3 cxd3 26. Qb3) 24... c3 $19 {[%emt 0:00:02]} (24... Qxa2 25. Bd4 Bxd4+ 26. Nxd4 $14) 25. Bxa6 {[%emt 0:01:27]} Qxa6 {[%emt 0:00:07]} (25... Rxa6 26. Rc1 $19) 26. Nd4 {[%emt 0:01:32]} Qa4 {[%emt 0:00:48]} (26... Qxa2 27. Nc6) 27. Qxc3 {[%emt 0:01:38]} (27. Qxa4 {keeps fighting.} Rxa4 28. e5 dxe5 29. Nc6 exf4 (29... Rxa2 $2 30. fxe5 c2 31. Rf1 $19) 30. Bxf4) 27... Nd1 {[%emt 0:00:14] Weighted Error Value: White=0.53/Black=0.14 (very precise)   Loses game:     	White=1     	---        Mistake:       	White=4     	---        Inaccurate:     	White=1     	Black=2      OK:         	White=6     	Black=3      Best:        	---       	Black=2      Strong:       	---       	Black=2} (27... Qxa2 $2 {is the wrong capture.} 28. Rxb2 (28. Qxb2 Qa4 $18) 28... Qa4 29. Kg2 $18) 0-1

[Event "Slovakian ECo-C Extraliga 2024-25"]
[Site "Slovakia"]
[Date "2025.01.19"]
[Round "4.1"]
[White "Navara, David"]
[Black "Antoniewski, Rafal"]
[Result "1-0"]
[Annotator "TA"]
[ECO "B32"]
[WhiteElo "2671"]
[BlackElo "2444"]
[PlyCount "105"]
[EventDate "2024.09.12"]
[EventType "team-tourn"]
[EventCountry "SVK"]
[SourceTitle "playchess.com"]
[Source "ChessBase"]
[SourceQuality "1"]
[TimeControl "5400+30"]

{[%evp 10,105,31,22,27,26,25,24,25,34,23,25,30,10,37,26,35,0,15,10,41,26,25,28,29,19,26,31,30,31,25,41,45,43,43,66,90,87,90,60,72,65,80,71,85,72,82,62,76,35,39,38,56,41,29,32,33,25,45,16,20,27,72,60,58,69,55,52,65,41,70,20,51,56,66,54,125,107,148,148,148,148,147,147,235,240,231,203,340,255,314,300,308,279,455,437,422,403]} 1. e4 {[%emt 0:00:02]} c5 {[%emt 0:00:29]} 2. Nf3 {[%emt 0:00:05]} Nc6 {[%emt 0:00:07]} 3. d4 {[%emt 0:00:09]} cxd4 {[%emt 0:00:19]} 4. Nxd4 {[%emt 0:00:04]} e5 {[%emt 0:00:36]} 5. Nb5 {[%emt 0:00:12]} d6 {[%emt 0:00:06]} 6. c4 {[%emt 0:00:43]} g6 {[%emt 0:01:01]} 7. N1c3 {[%emt 0:04:04] and Nd5 should not be overlooked} a6 {[%emt 0:00:44]} 8. Na3 {[%emt 0:00:04]} Be6 {[%emt 0:02:07]} 9. Nc2 {[%emt 0:03:12]} Rc8 {[%emt 0:07:40]} 10. Be2 {[%emt 0:05:39]} Bg7 {[%emt 0:05:36]} 11. Be3 {[%emt 0:02:30]} Nf6 {[%emt 0:09:21]} 12. O-O {[%emt 0:12:49]} Ne7 {[%emt 0:09:16]} 13. Na3 {[%emt 0:01:30]} Nc6 {[%emt 0:02:15]} 14. f3 {[%emt 0:19:28]} Nd4 {[%emt 0:11:48]} 15. Bxd4 {[%emt 0:01:36]} exd4 {[%emt 0:00:31]} 16. Qxd4 {[%emt 0:00:06]} O-O {[%emt 0:00:48][%cal Of6e4]} 17. Qe3 {[%emt 0:03:29]} Nd7 {[%emt 0:09:20]} 18. Rac1 {[%emt 0:05:01]} Qb6 {[%emt 0:09:45]} 19. Qxb6 {[%emt 0:00:26]} Nxb6 {[%emt 0:00:01]} 20. b3 {[%emt 0:00:37]} f5 {[%emt 0:00:28]} 21. Nab1 {[%emt 0:06:56][%cal Ba3b1,Bb1c3,Bc3e2][%mdl 32]} Bd4+ {[%emt 0:03:58]} 22. Kh1 {[%emt 0:00:09]} f4 {[%emt 0:00:02]} 23. Rfd1 {[%emt 0:07:51]} Be5 {[%emt 0:00:06]} 24. Nd5 {[%emt 0:10:14]} Bxd5 {[%emt 0:06:48]} 25. exd5 {[%emt 0:00:11]} (25. cxd5 Bb2 26. Rxc8 Rxc8 $16) 25... a5 {[%emt 0:00:20]} 26. Nc3 {[%emt 0:03:15]} Rfe8 {[%emt 0:00:49] White must now prevent ...Bxc3.} 27. Bf1 {[%emt 0:05:09]} Nd7 {[%emt 0:01:24]} 28. Ne2 {[%emt 0:01:21]} Nc5 {[%emt 0:01:28]} 29. g3 {[%emt 0:00:27]} fxg3 {[%emt 0:03:38]} 30. hxg3 {[%emt 0:01:06]} Rc7 {[%emt 0:00:40]} 31. Bh3 {[%emt 0:02:07]} Rce7 {[%emt 0:01:03]} 32. Rc2 {[%emt 0:01:01] Prevents Bb2} Bf6 {[%emt 0:04:08]} 33. Nf4 {[%emt 0:00:11]} Be5 {[%emt 0:00:38]} 34. Be6+ {[%emt 0:01:29]} Kg7 {[%emt 0:01:09]} 35. Ne2 {[%emt 0:00:06]} Nxe6 {[%emt 0:00:39]} 36. dxe6 {[%emt 0:00:04]} Rxe6 {[%emt 0:00:06]} 37. Rd5 {[%emt 0:02:14]} b6 {[%emt 0:04:06]} 38. Kg2 {[%emt 0:00:11]} g5 {[%emt 0:00:50]} 39. g4 {[%emt 0:03:27]} h6 {[%emt 0:03:32]} 40. a4 {[%emt 0:00:39]} (40. Rb5 $14) 40... Rc8 {[%emt 0:02:09]} 41. Rb5 {[%emt 0:00:00]} Rc6 {[%emt 0:00:00]} 42. Rd2 {[%emt 0:00:00]} Rf6 {[%emt 0:00:00]} (42... Kf6 $14) 43. Ng3 {[%emt 0:00:00]} Bxg3 {[%emt 0:00:00]} 44. Kxg3 $16 {[%emt 0:00:00][%mdl 4096] Endgame KRR-KRR} Re6 {[%emt 0:00:00]} 45. Kf2 {[%emt 0:00:00] White is more active.} Kf6 {[%emt 0:00:00]} 46. Re2 {[%emt 0:00:00]} Re5 {[%emt 0:00:00]} (46... Rxe2+ $16 47. Kxe2 Ke7) 47. Rexe5 $18 {[%emt 0:00:00]} dxe5 {[%emt 0:00:00] KR-KR} 48. Ke3 {[%emt 0:00:00]} Rd6 {[%emt 0:00:00]} (48... Ke6 $142 49. Ke4 Rd6 50. Rxe5+ Kf7) 49. c5 {[%emt 0:00:00]} bxc5 {[%emt 0:00:00]} 50. Rxa5 {[%emt 0:00:00]} (50. Rxc5 Rb6 $16) 50... Rc6 {[%emt 0:00:00]} ({But not} 50... Rb6 51. Rb5 (51. Rxc5 Rxb3+ 52. Kf2 e4 $11) 51... Rc6 52. Kd3) 51. Kd3 {[%emt 0:00:00]} Ke6 $2 {[%emt 0:00:00]} (51... Ke7 {was called for.} 52. Rb5 Rf6 53. Rb7+ (53. Rxc5 Rxf3+ 54. Kc4 Rf4+ 55. Kb5 Rxg4 $16) 53... Kd8) 52. Kc4 {[%emt 0:00:00]} Kd6 {[%emt 0:00:00]} 53. Rb5 {[%emt 0:00:00]} 1-0

[Event "Slovakian ECo-C Extraliga 2024-25"]
[Site "Slovakia"]
[Date "2025.01.19"]
[Round "4.1"]
[White "Sahidi, Samir"]
[Black "Hrbek, Stepan"]
[Result "1-0"]
[Annotator "TA"]
[ECO "B31"]
[WhiteElo "2494"]
[BlackElo "2409"]
[PlyCount "95"]
[EventDate "2024.09.12"]
[EventType "team-tourn"]
[EventCountry "SVK"]
[SourceTitle "playchess.com"]
[Source "ChessBase"]
[SourceQuality "1"]
[TimeControl "5400+30"]

{[%evp 10,95,19,5,8,12,0,-6,19,-12,-11,-13,-11,-46,-40,-82,-60,-46,-52,-128,-126,-175,-173,-170,-146,-166,-156,-200,-195,-725,-716,-989,-967,-1160,-1160,-1160,-1076,-966,-801,-752,-480,-466,-437,-485,-485,-464,-466,-464,-468,-431,0,-367,0,-465,-442,-760,-704,-462,0,-433,0,-903,-913,-715,-1356,-1351,-1324,-1150,-352,-343,-131,-140,-68,-392,-381,-381,-385,-614,0,-29,0,0,389,362,6335,5422,29989,29990]} 1. e4 {[%emt 0:00:08]} c5 {[%emt 0:00:18]} 2. Nf3 {[%emt 0:00:06]} Nc6 {[%emt 0:00:16]} 3. Bb5 {[%emt 0:00:10]} g6 {[%emt 0:00:13]} 4. O-O {[%emt 0:00:38]} Bg7 {[%emt 0:00:07]} 5. Bxc6 {[%emt 0:01:44]} bxc6 {[%emt 0:00:13]} 6. d3 {[%emt 0:01:14]} e5 {[%emt 0:05:29] B31: Sicilian: 2...Nc6 3 Bb5 g6.} 7. a3 {[%emt 0:07:07]} a5 {[%emt 0:03:57]} 8. b3 $146 {[%emt 0:11:17]} (8. Be3 d6 9. Nbd2 Ne7 10. c3 a4 11. d4 exd4 12. cxd4 O-O 13. dxc5 Bxb2 14. Nc4 Bxa1 15. Qxa1 {1-0 Fedoseev,V (2704)-Saric,I (2687) Chess.com Rapid Wk6 Swiss 2022 (2)}) 8... Ne7 {[%emt 0:03:29] The position is equal.} 9. Nbd2 {[%emt 0:00:34]} O-O {[%emt 0:02:27]} 10. Bb2 {[%emt 0:04:04]} d6 {[%emt 0:02:16]} 11. Ne1 {[%emt 0:04:39]} f5 {[%emt 0:10:13]} 12. f4 {[%emt 0:03:43]} fxe4 {[%emt 0:06:35]} 13. fxe5 {[%emt 0:00:53]} e3 {[%emt 0:04:30]} 14. Rxf8+ {[%emt 0:05:17][%csl Oe3] Black has a strong passed pawn} (14. Nc4 $1 $15) 14... Qxf8 $17 {[%emt 0:00:22]} 15. Ne4 {[%emt 0:00:10]} (15. Ndf3 $17) 15... d5 $1 $19 {[%emt 0:15:46]} (15... Bxe5 16. Bxe5 dxe5 17. Qe2 $11) (15... dxe5 16. Qe2 $15) 16. Nf6+ {[%emt 0:00:13]} Bxf6 $1 {[%emt 0:00:09]} (16... Kh8 17. Qc1 $15) 17. exf6 {[%emt 0:00:09][%cal Oe1f3] [#]} d4 $1 {[%emt 0:00:05]} 18. c3 {[%emt 0:12:39]} (18. Qf3 Nd5) 18... Qxf6 $40 {[%emt 0:02:39][%mdl 128] Black is out for blood.} 19. Qc2 {[%emt 0:01:50] Wards off Qf2+} (19. Qf3 Qxf3 20. Nxf3) 19... Bg4 {[%emt 0:05:42] White is weak on the light squares} 20. h3 {[%emt 0:03:05] [#]} Rf8 $1 {[%emt 0:26:23]} 21. hxg4 {[%emt 0:03:31]} (21. cxd4 Qf1+) 21... Qf1+ {[%emt 0:00:06]} 22. Kh2 {[%emt 0:00:07]} Rf2 {[%emt 0:00:27]} 23. Qc1 {[%emt 0:00:13]} Rd2 {[%emt 0:00:55]} 24. cxd4 {[%emt 0:00:34]} Qf4+ {[%emt 0:01:15]} 25. Kh1 {[%emt 0:04:20]} Rf2 {[%emt 0:01:54][%cal Rf2f1]} (25... cxd4 26. Qc4+ (26. Nf3 Rxg2 27. Qc4+ Kf8 $11) 26... Nd5 27. Qxd4 Qh6+ (27... Qf1+ $2 28. Kh2 $18) 28. Kg1 $11) 26. Nf3 {[%emt 0:01:17]} Qxg4 {[%emt 0:01:35][%csl Gf2][%cal Rg4g2]} 27. Qg1 {[%emt 0:00:59]} (27. Qc4+ Nd5 28. Rg1 Rxf3 (28... Rxb2 29. Qxc5 Nf4 30. Nh2 $19) 29. Rb1 Rf2) 27... Nf5 {[%emt 0:00:34] ( -> ...Ng3+)} (27... Rxb2 28. Qh2 $19) 28. Qh2 {[%emt 0:00:23]} Ng3+ {[%emt 0:00:30]} (28... Rxb2 $2 29. Qb8+ Kg7 30. Qe5+ Kh6 31. Qh2+ Qh5 32. dxc5 Ng3+ (32... Rxb3 $2 33. g4 $19) 33. Kg1 Ne2+ 34. Kh1 $19) 29. Kg1 {[%emt 0:00:08]} Ne2+ {[%emt 0:00:02]} 30. Kh1 {[%emt 0:00:09] Black must now prevent Qb8+.} Ng3+ {[%emt 0:00:02]} (30... cxd4 31. Qb8+ Kg7 32. Qe5+ Kh6 33. Qh2+ Kg7 34. Qe5+ Kh6 35. Qh2+ Kg7 36. Qc7+ Kh6 37. Qh2+ $11) 31. Kg1 {[%emt 0:00:07]} Rxb2 {[%emt 0:05:47]} 32. dxc5 {[%emt 0:00:31]} (32. Re1 $142 h5 (32... Rxb3 $2 33. dxc5 Kg7 34. Qh3 $19) (32... cxd4 $2 33. Nxd4 c5 34. Nf3 $19) 33. Qh4) 32... Ne2+ {[%emt 0:00:20]} 33. Kh1 {[%emt 0:00:10]} Ng3+ {[%emt 0:00:01]} (33... Rxb3 34. Re1 Ng3+ 35. Kg1 $19) 34. Kg1 {[%emt 0:00:10]} Ne2+ {[%emt 0:00:55]} (34... Rxb3 35. Qh3 Ne2+ 36. Kh2 Qf4+ 37. Kh1 Ng3+ (37... Rxd3 38. Qc8+ Kg7 39. Qxc6 $17) 38. Kg1 $19) (34... a4 $142 35. b4 Ne2+ 36. Kh1 Nf4) 35. Kh1 {[%emt 0:00:05]} Nf4 {[%emt 0:00:03][%cal Rb2g2]} 36. Ne5 {[%emt 0:04:10]} Qf5 {[%emt 0:00:36]} (36... Qxg2+ $2 37. Qxg2 Rxg2 38. d4 $19) (36... Qe2 37. Rg1 Qh5 (37... Nxd3 38. Nxd3 Qxd3 39. Qb8+ Kf7 40. Qb7+ Kf6 41. Qxc6+ Kg5 42. Qf3 $15) 38. Qxh5 Nxh5 (38... gxh5 39. Re1 $11) 39. Re1 $11) 37. Nxc6 {[%emt 0:01:06][%cal Be5c6,Bc6d4,Bd4f3][%mdl 32]} Qg5 {[%emt 0:01:10] Threatens to win with ...Rf2.} (37... Rxb3 $2 38. Ne7+ (38. Nxa5 $2 Rxd3 39. Rb1 e2 $19) 38... Kf7 39. Nxf5 $18) (37... Qxc5 38. Qxf4 Qxc6 39. Qb8+ Kg7 40. Qa7+ Kg8 41. Qb8+ Kg7 42. Qe5+ Qf6 43. Qc7+ (43. Qxe3 Rxb3 44. Rc1 Qd6 $11) 43... Qf7 (43... Kg8 44. Qc8+ Qf8 45. Qe6+ Kg7 46. Qxe3 $11) 44. Qe5+ Qf6 45. Qc7+ Kh6 46. Qh2+ Kg7 47. Qc7+ $11) 38. Rg1 {[%emt 0:00:48]} e2 $2 {[%emt 0:01:25]} (38... Nxd3 39. Qb8+ Kg7 40. Qc7+ Kh6 41. Qh2+ Qh5 42. Qxh5+ Kxh5 43. Nd4 Nxc5 44. Re1 $19) (38... Rf2 39. Nd4 Qd5 (39... Nxd3 40. Qb8+ Kf7 41. Qb7+ Qe7 42. c6 $17) (39... Qxc5 $2 40. Nf3 $19)) 39. Nd4 {[%emt 0:03:03]} Qe5 $2 {[%emt 0:00:37]} (39... Nxd3 40. Qb8+ Kf7 41. Qb7+ Qe7 42. Qd5+ Kg7 43. Ne6+ Kf6 44. Qxd3 $19) (39... Qf6 $19 40. Nf3 Rxb3 (40... Nxd3 $2 41. Qb8+ Qf8 42. Qxf8+ Kxf8 43. b4 $19)) 40. Nf3 $17 {[%emt 0:00:36]} Qe3 {[%emt 0:00:30]} (40... Qxc5 41. Qxf4 Qh5+ 42. Nh2 $16) (40... Qf6 $1 $17 41. d4 Rxb3) 41. c6 $2 {[%emt 0:04:23][%mdl 8192]} ({White should play} 41. Qh4 $15) 41... Rc2 $1 $19 {[%emt 0:00:00]} (41... Rxb3 42. c7 Rc3 (42... Rxd3 43. c8=Q+) 43. Qh4 $17) (41... Nxd3 42. Qh4 $15) 42. Qh4 {[%emt 0:00:00]} Kg7 {[%emt 0:00:00]} (42... Rxc6 $2 43. Qd8+ Kg7 44. Qd7+ (44. Qxa5 $2 Rc5 $19) 44... Kg8 45. Qxc6 $18) 43. Qd8 {[%emt 0:00:00] [#]} (43. b4 $142 Rxc6 (43... Nxd3 44. bxa5 Rc5 45. c7 $19) 44. Rb1) 43... Nh5 $2 {[%emt 0:00:00]} (43... Nxd3 44. Qc7+ Kh6 45. Qh2+ Kg7 46. Qc7+ Kf8 47. Qd6+ Ke8 48. Qd7+ Kf8 49. Qd6+ Kg8 50. Qd8+ Kg7 51. Qd7+ Kh6 52. Qh3+ Kg7 53. Qd7+ Kh6 54. Qh3+ Kg7 55. Qd7+ $11) (43... Rc5 $1 $19 {[%cal Rc5h5] ( -> ...Rh5+)} 44. Kh2 Ne6 (44... Rxc6 $2 45. Qd7+ Kg8 46. Qxc6 $18) (44... Nxd3 45. Qd4+ Qxd4 46. Nxd4 $11) (44... Rh5+ $2 45. Kg3 $19) 45. Qe7+ Kh6) 44. Qd6 {[%emt 0:00:00]} Qc5 {[%emt 0:00:00]} (44... Rxc6 $5 45. Qd7+ Kf8 46. Qd8+ (46. Qxc6 $2 Ng3+ 47. Kh2 Nf1+ 48. Kh3 e1=Q $19) 46... Qe8 47. Qxe8+ Kxe8 $19) 45. Qc7+ {[%emt 0:00:00]} Kh6 $2 {[%emt 0:00:00][%mdl 8192] [#]} (45... Kg8 $11 {and Black stays safe.}) 46. g4 $1 $18 {[%emt 0:00:00][%cal Bg2g4,Bg4g5][%mdl 32]} e1=Q $2 {[%emt 0:00:00]} (46... g5 47. gxh5 (47. Qh2 Rc1 $16) 47... Qd5) 47. Rxe1 {[%emt 0:00:00] Intending g5+ and mate.} Nf6 {[%emt 0:00:00]} 48. g5+ {[%emt 0:00:00] Weighted Error Value: White=0.75/Black=1.23  Loses game:     	White=2     	Black=1      Missed win:     	---       	Black=1      Mistake:       	White=5     	Black=3      Inaccurate:     	White=5     	Black=1      OK:         	White=5     	Black=9      Best:        	White=7     	Black=4      Strong:       	White=1     	Black=4} 1-0